[Event "Titled Tuesday Blitz June 20 Late 2023"]
[White "Kostiukov, Alexandr"]
[Black "Szente Varga, Fruzsina"]
[WhiteFideId "14108100"]
[BlackFideId "712264"]
[WhiteElo "2202"]
[BlackElo "1994"]
[Result "1-0"]
[Round "3"]
[TimeControl "180+2"]
[Date "2023.06.20"]
[WhiteClock "0:01:51"]
[BlackClock "0:01:05"]
[Board "173"]

1. g3 {[%clk 0:02:55]}  d5 {[%clk 0:02:59]} 2. Bg2 {[%clk 0:02:55]}  e5 {[%clk 0:02:59]} 3. c4 {[%clk 0:02:53]}  c6 {[%clk 0:02:57]} 4. cxd5 {[%clk 0:02:53]}  cxd5 {[%clk 0:02:57]} 5. d4 {[%clk 0:02:54]}  e4 {[%clk 0:02:57]} 6. Nc3 {[%clk 0:02:53]}  Nc6 {[%clk 0:02:56]} 7. Nh3 {[%clk 0:02:53]}  Nf6 {[%clk 0:02:51]} 8. Bg5 {[%clk 0:02:52]}  Be7 {[%clk 0:02:51]} 9. Nf4 {[%clk 0:02:51]}  Be6 {[%clk 0:02:50]} 10. O-O {[%clk 0:02:51]}  O-O {[%clk 0:02:50]} 11. e3 {[%clk 0:02:50]}  Bg4 {[%clk 0:02:35]} 12. f3 {[%clk 0:02:37]}  exf3 {[%clk 0:02:34]} 13. Bxf3 {[%clk 0:02:38]}  Bxf3 {[%clk 0:02:34]} 14. Qxf3 {[%clk 0:02:38]}  Qb6 {[%clk 0:02:18]} 15. Rf2 {[%clk 0:02:09]}  Rfe8 {[%clk 0:01:58]} 16. Bxf6 {[%clk 0:02:04]}  Bxf6 {[%clk 0:01:49]} 17. Nfxd5 {[%clk 0:01:59]}  Qa5 {[%clk 0:01:36]} 18. Nxf6+ {[%clk 0:01:58]}  gxf6 {[%clk 0:01:35]} 19. Qxf6 {[%clk 0:01:56]}  Nd8 {[%clk 0:01:12]} 20. Rf5 {[%clk 0:01:53]}  Qb6 {[%clk 0:01:08]} 21. Rg5+ {[%clk 0:01:50]}  Kf8 {[%clk 0:01:08]} 22. Qg7+ {[%clk 0:01:50]}  Ke7 {[%clk 0:01:05]} 23. Nd5+ {[%clk 0:01:51]} 1-0


[Site "https://www.chess.com"]

[Event "Titled Tuesday Blitz June 20 Late 2023"]
[White "Pinero Rodriguez, Carlos Jose"]
[Black "Lopez Del Alamo, Antonio"]
[WhiteFideId "3901726"]
[BlackFideId "2227339"]
[WhiteElo "2146"]
[BlackElo "2175"]
[Result "1-0"]
[Round "3"]
[TimeControl "180+2"]
[Date "2023.06.20"]
[WhiteClock "0:01:45"]
[BlackClock "0:00:42"]
[Board "175"]

1. b3 {[%clk 0:03:00]}  Nf6 {[%clk 0:02:52]} 2. Bb2 {[%clk 0:03:00]}  g6 {[%clk 0:02:49]} 3. Bxf6 {[%clk 0:03:00]}  exf6 {[%clk 0:02:48]} 4. d4 {[%clk 0:03:00]}  f5 {[%clk 0:02:47]} 5. e3 {[%clk 0:03:00]}  h5 {[%clk 0:02:46]} 6. h4 {[%clk 0:02:59]}  d6 {[%clk 0:02:36]} 7. g3 {[%clk 0:02:59]}  Nd7 {[%clk 0:02:34]} 8. Bg2 {[%clk 0:02:59]}  Nf6 {[%clk 0:02:29]} 9. Nd2 {[%clk 0:02:59]}  Be7 {[%clk 0:02:24]} 10. Ne2 {[%clk 0:02:59]}  O-O {[%clk 0:02:24]} 11. O-O {[%clk 0:02:59]}  Ng4 {[%clk 0:02:24]} 12. Nf4 {[%clk 0:02:58]}  c6 {[%clk 0:02:22]} 13. c4 {[%clk 0:02:57]}  Bd7 {[%clk 0:02:19]} 14. Rc1 {[%clk 0:02:57]}  Kg7 {[%clk 0:02:15]} 15. Qe2 {[%clk 0:02:53]}  Rh8 {[%clk 0:02:11]} 16. f3 {[%clk 0:02:53]}  Nf6 {[%clk 0:02:09]} 17. e4 {[%clk 0:02:53]}  fxe4 {[%clk 0:02:07]} 18. fxe4 {[%clk 0:02:54]}  Ng4 {[%clk 0:02:04]} 19. Qf3 {[%clk 0:02:46]}  Be8 {[%clk 0:02:00]} 20. Rce1 {[%clk 0:02:44]}  Bf6 {[%clk 0:01:56]} 21. Ne2 {[%clk 0:02:44]}  c5 {[%clk 0:01:49]} 22. d5 {[%clk 0:02:43]}  Ne5 {[%clk 0:01:43]} 23. Qe3 {[%clk 0:02:37]}  Bd7 {[%clk 0:01:36]} 24. Nf3 {[%clk 0:02:29]}  Qe7 {[%clk 0:01:35]} 25. Qc1 {[%clk 0:02:23]}  Bg4 {[%clk 0:01:28]} 26. Nxe5 {[%clk 0:02:19]}  Bxe5 {[%clk 0:01:28]} 27. Nf4 {[%clk 0:02:19]}  a6 {[%clk 0:01:24]} 28. Bf3 {[%clk 0:02:16]}  Qd7 {[%clk 0:01:23]} 29. Bxg4 {[%clk 0:02:12]}  Qxg4 {[%clk 0:01:22]} 30. Kg2 {[%clk 0:02:12]}  Rae8 {[%clk 0:01:22]} 31. Qe3 {[%clk 0:02:11]}  Re7 {[%clk 0:01:21]} 32. Qf3 {[%clk 0:02:11]}  Qd7 {[%clk 0:01:21]} 33. Nd3 {[%clk 0:02:11]}  Rhe8 {[%clk 0:01:19]} 34. Nxe5 {[%clk 0:02:07]}  Rxe5 {[%clk 0:01:19]} 35. Qf6+ {[%clk 0:02:08]}  Kg8 {[%clk 0:01:19]} 36. Rf4 {[%clk 0:02:08]}  Qe7 {[%clk 0:01:19]} 37. Ref1 {[%clk 0:02:08]}  Qxf6 {[%clk 0:01:14]} 38. Rxf6 {[%clk 0:02:09]}  Rxe4 {[%clk 0:01:14]} 39. Rxd6 {[%clk 0:02:08]}  Re2+ {[%clk 0:01:13]} 40. Rf2 {[%clk 0:02:08]}  R2e3 {[%clk 0:01:07]} 41. Rd7 {[%clk 0:01:57]}  f5 {[%clk 0:01:07]} 42. Rd2 {[%clk 0:01:54]}  Rc3 {[%clk 0:01:06]} 43. Rxb7 {[%clk 0:01:52]}  Ree3 {[%clk 0:01:07]} 44. d6 {[%clk 0:01:51]}  Rxg3+ {[%clk 0:01:06]} 45. Kf2 {[%clk 0:01:51]}  Rgd3 {[%clk 0:00:49]} 46. Ke2 {[%clk 0:01:45]}  Re3+ {[%clk 0:00:48]} 47. Kd1 {[%clk 0:01:45]}  f4 {[%clk 0:00:43]} 48. d7 {[%clk 0:01:45]}  Rcd3 {[%clk 0:00:44]} 49. d8=Q+ {[%clk 0:01:44]}  Rxd8 {[%clk 0:00:43]} 50. Rxd8+ {[%clk 0:01:45]}  Re8 {[%clk 0:00:42]} 51. Rxe8# {[%clk 0:01:45]} 1-0


[Site "https://www.chess.com"]

[Event "Titled Tuesday Blitz June 20 Late 2023"]
[White "Chessadiction1990"]
[Black "Ladron De Guevara Pinto, Paolo"]
[BlackFideId "2290847"]
[WhiteElo "2215"]
[BlackElo "2398"]
[Result "0-1"]
[Round "3"]
[TimeControl "180+2"]
[Date "2023.06.20"]
[WhiteClock "0:00:00"]
[BlackClock "0:00:10"]
[Board "176"]

1. d4 {[%clk 0:03:00]}  d6 {[%clk 0:02:55]} 2. e4 {[%clk 0:03:00]}  Nf6 {[%clk 0:02:50]} 3. Nc3 {[%clk 0:03:00]}  e5 {[%clk 0:02:50]} 4. Nf3 {[%clk 0:02:58]}  Nbd7 {[%clk 0:02:42]} 5. Bc4 {[%clk 0:02:58]}  Be7 {[%clk 0:02:43]} 6. O-O {[%clk 0:02:57]}  O-O {[%clk 0:02:43]} 7. a3 {[%clk 0:02:57]}  c6 {[%clk 0:02:43]} 8. h3 {[%clk 0:02:49]}  b5 {[%clk 0:02:44]} 9. Ba2 {[%clk 0:02:47]}  a5 {[%clk 0:02:44]} 10. Re1 {[%clk 0:02:40]}  Bb7 {[%clk 0:02:19]} 11. d5 {[%clk 0:02:24]}  Nb6 {[%clk 0:02:06]} 12. dxc6 {[%clk 0:02:13]}  Bxc6 {[%clk 0:02:04]} 13. Bg5 {[%clk 0:02:09]}  Rc8 {[%clk 0:01:33]} 14. Rc1 {[%clk 0:01:50]}  Ne8 {[%clk 0:01:05]} 15. Bxe7 {[%clk 0:01:49]}  Qxe7 {[%clk 0:01:06]} 16. Nd5 {[%clk 0:01:48]}  Bxd5 {[%clk 0:01:04]} 17. Bxd5 {[%clk 0:01:48]}  Nf6 {[%clk 0:01:00]} 18. Ba2 {[%clk 0:01:26]}  Nc4 {[%clk 0:00:59]} 19. Qe2 {[%clk 0:00:53]}  Qb7 {[%clk 0:00:53]} 20. Bxc4 {[%clk 0:00:40]}  Rxc4 {[%clk 0:00:53]} 21. Nd2 {[%clk 0:00:41]}  Rc7 {[%clk 0:00:39]} 22. c3 {[%clk 0:00:38]}  h6 {[%clk 0:00:35]} 23. Rcd1 {[%clk 0:00:38]}  b4 {[%clk 0:00:31]} 24. cxb4 {[%clk 0:00:35]}  axb4 {[%clk 0:00:32]} 25. Nf3 {[%clk 0:00:33]}  b3 {[%clk 0:00:28]} 26. Rxd6 {[%clk 0:00:22]}  Rc2 {[%clk 0:00:28]} 27. Rd2 {[%clk 0:00:22]}  Qc7 {[%clk 0:00:17]} 28. Rxc2 {[%clk 0:00:18]}  bxc2 {[%clk 0:00:18]} 29. Rc1 {[%clk 0:00:18]}  Rc8 {[%clk 0:00:18]} 30. Qd3 {[%clk 0:00:12]}  Nh5 {[%clk 0:00:15]} 31. g3 {[%clk 0:00:11]}  Qc5 {[%clk 0:00:13]} 32. Kg2 {[%clk 0:00:09]}  Rc6 {[%clk 0:00:12]} 33. Ne1 {[%clk 0:00:08]}  Rf6 {[%clk 0:00:10]} 34. f3 {[%clk 0:00:00]}  Rg6 {[%clk 0:00:10]} 0-1


[Site "https://www.chess.com"]

[Event "Titled Tuesday Blitz June 20 Late 2023"]
[White "Fernandez Siles, Luis"]
[Black "KSho99"]
[WhiteFideId "2209420"]
[WhiteElo "2195"]
[BlackElo "2213"]
[Result "1-0"]
[Round "3"]
[TimeControl "180+2"]
[Date "2023.06.20"]
[WhiteClock "0:00:59"]
[BlackClock "0:00:00"]
[Board "177"]

1. e4 {[%clk 0:03:00]}  e6 {[%clk 0:02:59]} 2. d4 {[%clk 0:03:00]}  d5 {[%clk 0:02:59]} 3. Nd2 {[%clk 0:03:01]}  Be7 {[%clk 0:02:59]} 4. Ngf3 {[%clk 0:03:00]}  Nf6 {[%clk 0:02:59]} 5. Bd3 {[%clk 0:03:00]}  dxe4 {[%clk 0:02:30]} 6. Nxe4 {[%clk 0:03:01]}  Nxe4 {[%clk 0:02:30]} 7. Bxe4 {[%clk 0:03:00]}  Nd7 {[%clk 0:02:29]} 8. c3 {[%clk 0:02:57]}  Nf6 {[%clk 0:02:29]} 9. Bc2 {[%clk 0:02:57]}  c5 {[%clk 0:02:27]} 10. O-O {[%clk 0:02:53]}  cxd4 {[%clk 0:02:26]} 11. Nxd4 {[%clk 0:02:47]}  O-O {[%clk 0:02:25]} 12. Qf3 {[%clk 0:02:47]}  Qd5 {[%clk 0:02:22]} 13. Qg3 {[%clk 0:02:33]}  Kh8 {[%clk 0:02:00]} 14. Bg5 {[%clk 0:02:25]}  h6 {[%clk 0:01:47]} 15. Be3 {[%clk 0:02:16]}  Bd7 {[%clk 0:01:23]} 16. Nf3 {[%clk 0:02:12]}  Bc6 {[%clk 0:01:14]} 17. Ne5 {[%clk 0:02:11]}  Bd6 {[%clk 0:01:07]} 18. f4 {[%clk 0:02:10]}  Bxe5 {[%clk 0:00:30]} 19. fxe5 {[%clk 0:02:09]}  Nh5 {[%clk 0:00:30]} 20. Qh3 {[%clk 0:02:04]}  Qxe5 {[%clk 0:00:28]} 21. Bd4 {[%clk 0:01:59]}  Qg5 {[%clk 0:00:23]} 22. Rae1 {[%clk 0:01:42]}  Nf4 {[%clk 0:00:19]} 23. Qg3 {[%clk 0:01:17]}  Nxg2 {[%clk 0:00:05]} 24. Re5 {[%clk 0:01:07]}  Qxg3 {[%clk 0:00:03]} 25. hxg3 {[%clk 0:01:08]}  f6 {[%clk 0:00:01]} 26. Rxe6 {[%clk 0:01:08]}  Bd5 {[%clk 0:00:01]} 27. Rd6 {[%clk 0:01:03]}  Rad8 {[%clk 0:00:01]} 28. Rxd5 {[%clk 0:01:02]}  Rxd5 {[%clk 0:00:01]} 29. Kxg2 {[%clk 0:01:03]}  Re8 {[%clk 0:00:01]} 30. Rf2 {[%clk 0:01:00]}  Re1 {[%clk 0:00:00]} 31. Bb3 {[%clk 0:00:59]} 1-0


[Site "https://www.chess.com"]

[Event "Titled Tuesday Blitz June 20 Late 2023"]
[White "Ozalp, Burak"]
[Black "Vila Dupla, Aurelio"]
[WhiteFideId "6314210"]
[BlackFideId "2203383"]
[WhiteElo "2106"]
[BlackElo "2009"]
[Result "0-1"]
[Round "3"]
[TimeControl "180+2"]
[Date "2023.06.20"]
[WhiteClock "0:00:02"]
[BlackClock "0:00:21"]
[Board "178"]

1. Nf3 {[%clk 0:03:00]}  Nf6 {[%clk 0:02:59]} 2. g3 {[%clk 0:02:59]}  g6 {[%clk 0:02:59]} 3. Bg2 {[%clk 0:03:00]}  Bg7 {[%clk 0:02:59]} 4. O-O {[%clk 0:03:01]}  O-O {[%clk 0:03:00]} 5. d4 {[%clk 0:03:02]}  d5 {[%clk 0:03:00]} 6. c4 {[%clk 0:02:48]}  c6 {[%clk 0:02:59]} 7. Nc3 {[%clk 0:02:46]}  dxc4 {[%clk 0:02:58]} 8. Ne5 {[%clk 0:02:41]}  Ng4 {[%clk 0:02:58]} 9. Nxg4 {[%clk 0:02:14]}  Bxg4 {[%clk 0:02:55]} 10. h3 {[%clk 0:02:14]}  Be6 {[%clk 0:02:47]} 11. Be3 {[%clk 0:02:03]}  Na6 {[%clk 0:02:36]} 12. Qa4 {[%clk 0:01:47]}  Nc7 {[%clk 0:02:31]} 13. Rfd1 {[%clk 0:01:45]}  Nd5 {[%clk 0:02:31]} 14. Nxd5 {[%clk 0:01:39]}  Bxd5 {[%clk 0:02:29]} 15. Rac1 {[%clk 0:01:36]}  Bxg2 {[%clk 0:02:27]} 16. Kxg2 {[%clk 0:01:36]}  Qd5+ {[%clk 0:02:27]} 17. f3 {[%clk 0:01:29]}  b5 {[%clk 0:02:26]} 18. Qc2 {[%clk 0:01:26]}  e5 {[%clk 0:01:43]} 19. dxe5 {[%clk 0:01:22]}  Qxe5 {[%clk 0:01:42]} 20. Bd4 {[%clk 0:01:19]}  Qe6 {[%clk 0:01:41]} 21. e4 {[%clk 0:01:16]}  Rfd8 {[%clk 0:01:34]} 22. Bxg7 {[%clk 0:01:12]}  Rxd1 {[%clk 0:01:33]} 23. Rxd1 {[%clk 0:01:10]}  Kxg7 {[%clk 0:01:32]} 24. Qc3+ {[%clk 0:01:09]}  Kg8 {[%clk 0:01:30]} 25. Qd4 {[%clk 0:01:09]}  a5 {[%clk 0:01:29]} 26. h4 {[%clk 0:01:08]}  h5 {[%clk 0:01:23]} 27. Qc5 {[%clk 0:00:54]}  c3 {[%clk 0:01:19]} 28. Qxc3 {[%clk 0:00:43]}  Qxa2 {[%clk 0:01:19]} 29. Rd7 {[%clk 0:00:33]}  a4 {[%clk 0:01:09]} 30. Qxc6 {[%clk 0:00:30]}  Qxb2+ {[%clk 0:01:07]} 31. Kh3 {[%clk 0:00:30]}  Rf8 {[%clk 0:00:55]} 32. f4 {[%clk 0:00:18]}  a3 {[%clk 0:00:53]} 33. Ra7 {[%clk 0:00:17]}  a2 {[%clk 0:00:51]} 34. Qa6 {[%clk 0:00:16]}  Qb1 {[%clk 0:00:44]} 35. Kg2 {[%clk 0:00:15]}  Rd8 {[%clk 0:00:42]} 36. Qxa2 {[%clk 0:00:13]}  Qxe4+ {[%clk 0:00:37]} 37. Kh2 {[%clk 0:00:12]}  Qf5 {[%clk 0:00:26]} 38. Re7 {[%clk 0:00:04]}  Rc8 {[%clk 0:00:25]} 39. Qe2 {[%clk 0:00:03]}  Rc2 {[%clk 0:00:23]} 40. Re8+ {[%clk 0:00:04]}  Kg7 {[%clk 0:00:21]} 41. Re5 {[%clk 0:00:04]}  Rxe2+ {[%clk 0:00:20]} 42. Rxe2 {[%clk 0:00:02]}  b4 {[%clk 0:00:21]} 0-1


[Site "https://www.chess.com"]

[Event "Titled Tuesday Blitz June 20 Late 2023"]
[White "Arias Igual, Alejandro"]
[Black "Thiel, Thomas"]
[WhiteFideId "2254905"]
[BlackFideId "4615964"]
[WhiteElo "2179"]
[BlackElo "2202"]
[Result "1-0"]
[Round "3"]
[TimeControl "180+2"]
[Date "2023.06.20"]
[WhiteClock "0:00:46"]
[BlackClock "0:00:40"]
[Board "179"]

1. e4 {[%clk 0:03:00]}  d5 {[%clk 0:02:59]} 2. d3 {[%clk 0:02:59]}  dxe4 {[%clk 0:02:57]} 3. dxe4 {[%clk 0:03:00]}  Qxd1+ {[%clk 0:02:55]} 4. Kxd1 {[%clk 0:03:01]}  Nc6 {[%clk 0:02:54]} 5. c3 {[%clk 0:03:00]}  e5 {[%clk 0:02:49]} 6. Bc4 {[%clk 0:02:58]}  Bc5 {[%clk 0:02:48]} 7. f3 {[%clk 0:02:56]}  Bd7 {[%clk 0:02:44]} 8. a4 {[%clk 0:02:54]}  f6 {[%clk 0:02:42]} 9. b4 {[%clk 0:02:51]}  Bd6 {[%clk 0:02:37]} 10. Be3 {[%clk 0:02:50]}  O-O-O {[%clk 0:02:36]} 11. Kc2 {[%clk 0:02:50]}  f5 {[%clk 0:02:28]} 12. Nd2 {[%clk 0:02:45]}  Nf6 {[%clk 0:02:26]} 13. h3 {[%clk 0:02:37]}  fxe4 {[%clk 0:02:24]} 14. Nxe4 {[%clk 0:02:28]}  Nxe4 {[%clk 0:02:22]} 15. fxe4 {[%clk 0:02:29]}  Be8 {[%clk 0:02:18]} 16. Nf3 {[%clk 0:02:20]}  Bg6 {[%clk 0:02:18]} 17. Nd2 {[%clk 0:02:20]}  a6 {[%clk 0:02:09]} 18. b5 {[%clk 0:02:10]}  Na5 {[%clk 0:02:08]} 19. Be2 {[%clk 0:02:08]}  axb5 {[%clk 0:02:04]} 20. axb5 {[%clk 0:02:07]}  b6 {[%clk 0:02:04]} 21. c4 {[%clk 0:01:44]}  Nb7 {[%clk 0:02:01]} 22. Ra8+ {[%clk 0:01:37]}  Kd7 {[%clk 0:02:00]} 23. Bg4+ {[%clk 0:01:37]}  Ke7 {[%clk 0:01:58]} 24. Bg5+ {[%clk 0:01:36]}  Kf7 {[%clk 0:01:56]} 25. Bxd8 {[%clk 0:01:34]}  Rxd8 {[%clk 0:01:46]} 26. Rf1+ {[%clk 0:01:31]}  Ke7 {[%clk 0:01:44]} 27. Rxd8 {[%clk 0:01:24]}  Nxd8 {[%clk 0:01:43]} 28. Bf5 {[%clk 0:01:23]}  Ne6 {[%clk 0:01:40]} 29. Bxg6 {[%clk 0:01:20]}  hxg6 {[%clk 0:01:37]} 30. g3 {[%clk 0:01:10]}  Bb4 {[%clk 0:01:29]} 31. Nb3 {[%clk 0:01:08]}  Bc5 {[%clk 0:01:21]} 32. Kd3 {[%clk 0:01:06]}  Bd4 {[%clk 0:01:12]} 33. Nxd4 {[%clk 0:01:05]}  Nxd4 {[%clk 0:01:11]} 34. Ra1 {[%clk 0:01:03]}  Ne6 {[%clk 0:01:09]} 35. h4 {[%clk 0:01:00]}  g5 {[%clk 0:01:07]} 36. h5 {[%clk 0:00:59]}  g4 {[%clk 0:01:04]} 37. Ra8 {[%clk 0:00:58]}  Kf7 {[%clk 0:00:59]} 38. Rh8 {[%clk 0:00:50]}  Kf6 {[%clk 0:00:58]} 39. h6 {[%clk 0:00:47]}  gxh6 {[%clk 0:00:56]} 40. Rxh6+ {[%clk 0:00:48]}  Ke7 {[%clk 0:00:40]} 41. Rg6 {[%clk 0:00:46]} 1-0


[Site "https://www.chess.com"]

[Event "Titled Tuesday Blitz June 20 Late 2023"]
[White "Gardezi, Arsal"]
[Black "sebastianmarinp"]
[WhiteFideId "30949521"]
[WhiteElo "1906"]
[BlackElo "2362"]
[Result "0-1"]
[Round "3"]
[TimeControl "180+2"]
[Date "2023.06.20"]
[WhiteClock "0:00:17"]
[BlackClock "0:00:03"]
[Board "181"]

1. e4 {[%clk 0:03:00]}  c5 {[%clk 0:02:58]} 2. Nf3 {[%clk 0:02:59]}  d6 {[%clk 0:02:58]} 3. d4 {[%clk 0:02:59]}  cxd4 {[%clk 0:02:58]} 4. Nxd4 {[%clk 0:02:58]}  Nf6 {[%clk 0:02:59]} 5. Nc3 {[%clk 0:02:59]}  g6 {[%clk 0:02:59]} 6. Be3 {[%clk 0:02:57]}  Bg7 {[%clk 0:02:59]} 7. f3 {[%clk 0:02:56]}  O-O {[%clk 0:03:00]} 8. Bc4 {[%clk 0:02:56]}  Nc6 {[%clk 0:03:00]} 9. Qd2 {[%clk 0:02:55]}  Bd7 {[%clk 0:03:00]} 10. O-O-O {[%clk 0:02:51]}  Rc8 {[%clk 0:03:00]} 11. Bb3 {[%clk 0:02:51]}  Ne5 {[%clk 0:03:00]} 12. Kb1 {[%clk 0:02:48]}  Nc4 {[%clk 0:02:59]} 13. Bxc4 {[%clk 0:02:46]}  Rxc4 {[%clk 0:03:00]} 14. g4 {[%clk 0:02:42]}  Qc7 {[%clk 0:02:58]} 15. h4 {[%clk 0:02:39]}  Rc8 {[%clk 0:02:57]} 16. Nce2 {[%clk 0:02:38]}  e5 {[%clk 0:02:50]} 17. Nb3 {[%clk 0:02:19]}  Rxc2 {[%clk 0:02:48]} 18. Qd3 {[%clk 0:01:59]}  d5 {[%clk 0:02:34]} 19. exd5 {[%clk 0:01:37]}  e4 {[%clk 0:02:35]} 20. fxe4 {[%clk 0:01:32]}  Bxg4 {[%clk 0:02:21]} 21. Rc1 {[%clk 0:01:32]}  Bxe2 {[%clk 0:02:01]} 22. Qxc2 {[%clk 0:01:30]}  Qxc2+ {[%clk 0:01:59]} 23. Rxc2 {[%clk 0:01:30]}  Bd3 {[%clk 0:01:58]} 24. Rc1 {[%clk 0:01:23]}  Bxe4 {[%clk 0:01:43]} 25. Nc5 {[%clk 0:01:15]}  Bxc2+ {[%clk 0:01:37]} 26. Rxc2 {[%clk 0:01:14]}  Nxd5 {[%clk 0:01:35]} 27. Bf2 {[%clk 0:01:04]}  b6 {[%clk 0:01:30]} 28. Rd2 {[%clk 0:01:04]}  bxc5 {[%clk 0:01:18]} 29. Rxd5 {[%clk 0:01:04]}  Rb8 {[%clk 0:01:17]} 30. b3 {[%clk 0:00:41]}  c4 {[%clk 0:01:08]} 31. Bxa7 {[%clk 0:00:40]}  Ra8 {[%clk 0:01:09]} 32. Be3 {[%clk 0:00:35]}  cxb3 {[%clk 0:01:08]} 33. axb3 {[%clk 0:00:34]}  h5 {[%clk 0:00:43]} 34. Kc2 {[%clk 0:00:32]}  Rc8+ {[%clk 0:00:40]} 35. Kd2 {[%clk 0:00:29]}  Bc3+ {[%clk 0:00:37]} 36. Kd3 {[%clk 0:00:27]}  Bf6 {[%clk 0:00:38]} 37. Bg5 {[%clk 0:00:22]}  Bxg5 {[%clk 0:00:32]} 38. Rxg5 {[%clk 0:00:23]}  Kg7 {[%clk 0:00:31]} 39. b4 {[%clk 0:00:21]}  f6 {[%clk 0:00:23]} 40. Rg3 {[%clk 0:00:20]}  Kh6 {[%clk 0:00:21]} 41. b5 {[%clk 0:00:20]}  Rc5 {[%clk 0:00:19]} 42. Rf3 {[%clk 0:00:18]}  f5 {[%clk 0:00:10]} 43. b6 {[%clk 0:00:14]}  Rb5 {[%clk 0:00:10]} 44. Kd4 {[%clk 0:00:13]}  Rxb6 {[%clk 0:00:10]} 45. Ke5 {[%clk 0:00:14]}  Rb4 {[%clk 0:00:07]} 46. Rh3 {[%clk 0:00:13]}  f4 {[%clk 0:00:04]} 47. Rf3 {[%clk 0:00:13]}  g5 {[%clk 0:00:04]} 48. hxg5+ {[%clk 0:00:13]}  Kxg5 {[%clk 0:00:05]} 49. Rf1 {[%clk 0:00:14]}  Rb5+ {[%clk 0:00:04]} 50. Ke4 {[%clk 0:00:14]}  Rb4+ {[%clk 0:00:05]} 51. Kf3 {[%clk 0:00:13]}  Rb3+ {[%clk 0:00:05]} 52. Ke4 {[%clk 0:00:14]}  Re3+ {[%clk 0:00:05]} 53. Kd4 {[%clk 0:00:14]}  Kg4 {[%clk 0:00:04]} 54. Rh1 {[%clk 0:00:14]}  h4 {[%clk 0:00:04]} 55. Rg1+ {[%clk 0:00:15]}  Rg3 {[%clk 0:00:04]} 56. Rf1 {[%clk 0:00:16]}  h3 {[%clk 0:00:03]} 57. Ke4 {[%clk 0:00:16]}  Re3+ {[%clk 0:00:03]} 58. Kd4 {[%clk 0:00:17]}  h2 {[%clk 0:00:03]} 0-1


[Site "https://www.chess.com"]

[Event "Titled Tuesday Blitz June 20 Late 2023"]
[White "Winkels, Marcel"]
[Black "Kujawski, Adam"]
[WhiteFideId "1003887"]
[BlackFideId "1100920"]
[WhiteElo "1900"]
[BlackElo "2054"]
[Result "0-1"]
[Round "3"]
[TimeControl "180+2"]
[Date "2023.06.20"]
[WhiteClock "0:00:41"]
[BlackClock "0:00:06"]
[Board "184"]

1. d4 {[%clk 0:03:00]}  Nf6 {[%clk 0:02:59]} 2. Nc3 {[%clk 0:03:00]}  d5 {[%clk 0:02:59]} 3. Bf4 {[%clk 0:03:00]}  a6 {[%clk 0:02:59]} 4. e3 {[%clk 0:03:00]}  e6 {[%clk 0:02:57]} 5. Nf3 {[%clk 0:03:01]}  Be7 {[%clk 0:02:57]} 6. Ne5 {[%clk 0:03:01]}  O-O {[%clk 0:02:57]} 7. Bd3 {[%clk 0:03:00]}  c5 {[%clk 0:02:55]} 8. Qf3 {[%clk 0:02:57]}  c4 {[%clk 0:02:55]} 9. Be2 {[%clk 0:02:57]}  Nfd7 {[%clk 0:02:53]} 10. O-O-O {[%clk 0:02:54]}  Nxe5 {[%clk 0:02:43]} 11. Bxe5 {[%clk 0:02:53]}  Nc6 {[%clk 0:02:41]} 12. Bf4 {[%clk 0:02:51]}  b5 {[%clk 0:02:38]} 13. g4 {[%clk 0:02:47]}  b4 {[%clk 0:02:37]} 14. Na4 {[%clk 0:02:46]}  Bd7 {[%clk 0:02:31]} 15. Nc5 {[%clk 0:02:39]}  Bxc5 {[%clk 0:02:27]} 16. dxc5 {[%clk 0:02:39]}  Qa5 {[%clk 0:02:27]} 17. Kb1 {[%clk 0:02:35]}  Qxc5 {[%clk 0:01:48]} 18. Qg3 {[%clk 0:02:32]}  Qa5 {[%clk 0:01:33]} 19. h4 {[%clk 0:02:29]}  c3 {[%clk 0:01:23]} 20. Bd3 {[%clk 0:02:16]}  cxb2 {[%clk 0:01:02]} 21. Be5 {[%clk 0:02:08]}  Nxe5 {[%clk 0:00:54]} 22. Qxe5 {[%clk 0:02:07]}  Qc5 {[%clk 0:00:43]} 23. Qxb2 {[%clk 0:02:02]}  Rfc8 {[%clk 0:00:35]} 24. h5 {[%clk 0:02:01]}  Qc3 {[%clk 0:00:28]} 25. h6 {[%clk 0:01:53]}  Qxb2+ {[%clk 0:00:23]} 26. Kxb2 {[%clk 0:01:52]}  g6 {[%clk 0:00:23]} 27. e4 {[%clk 0:01:50]}  Bc6 {[%clk 0:00:18]} 28. f3 {[%clk 0:01:46]}  a5 {[%clk 0:00:18]} 29. exd5 {[%clk 0:01:42]}  Bxd5 {[%clk 0:00:17]} 30. Be4 {[%clk 0:01:42]}  Rc5 {[%clk 0:00:15]} 31. Bxd5 {[%clk 0:01:41]}  exd5 {[%clk 0:00:16]} 32. Rhe1 {[%clk 0:01:40]}  Kf8 {[%clk 0:00:15]} 33. Re5 {[%clk 0:01:39]}  Rd8 {[%clk 0:00:15]} 34. Rd4 {[%clk 0:01:38]}  f6 {[%clk 0:00:15]} 35. Re6 {[%clk 0:01:36]}  Kf7 {[%clk 0:00:15]} 36. Ra6 {[%clk 0:01:36]}  Rd7 {[%clk 0:00:16]} 37. Ra8 {[%clk 0:01:32]}  g5 {[%clk 0:00:14]} 38. f4 {[%clk 0:01:24]}  Kg6 {[%clk 0:00:14]} 39. f5+ {[%clk 0:01:24]}  Kxh6 {[%clk 0:00:15]} 40. Rf8 {[%clk 0:01:20]}  Kg7 {[%clk 0:00:14]} 41. Re8 {[%clk 0:01:20]}  Rdc7 {[%clk 0:00:14]} 42. Rd2 {[%clk 0:01:19]}  Rc4 {[%clk 0:00:12]} 43. Rd8 {[%clk 0:01:16]}  Rxg4 {[%clk 0:00:12]} 44. R8xd5 {[%clk 0:01:15]}  Rgc4 {[%clk 0:00:12]} 45. Rxa5 {[%clk 0:01:14]}  h5 {[%clk 0:00:11]} 46. Ra8 {[%clk 0:01:10]}  g4 {[%clk 0:00:11]} 47. Rdd8 {[%clk 0:01:09]}  Kh6 {[%clk 0:00:11]} 48. Rh8+ {[%clk 0:01:08]}  Kg5 {[%clk 0:00:11]} 49. Rag8+ {[%clk 0:01:07]}  Kxf5 {[%clk 0:00:12]} 50. Rxh5+ {[%clk 0:01:07]}  Kf4 {[%clk 0:00:12]} 51. Rh6 {[%clk 0:01:07]}  f5 {[%clk 0:00:12]} 52. Rf6 {[%clk 0:01:03]}  Rxc2+ {[%clk 0:00:12]} 53. Kb3 {[%clk 0:01:03]}  R2c4 {[%clk 0:00:12]} 54. Rb6 {[%clk 0:01:02]}  g3 {[%clk 0:00:11]} 55. Rbg6 {[%clk 0:01:01]}  Rc3+ {[%clk 0:00:10]} 56. Kxb4 {[%clk 0:01:00]}  Rf3 {[%clk 0:00:09]} 57. Rd8 {[%clk 0:00:57]}  Ke3 {[%clk 0:00:08]} 58. Re6+ {[%clk 0:00:56]}  Kf2 {[%clk 0:00:08]} 59. Rd2+ {[%clk 0:00:54]}  Kf1 {[%clk 0:00:07]} 60. Ree2 {[%clk 0:00:53]}  Rf2 {[%clk 0:00:07]} 61. Rxf2+ {[%clk 0:00:49]}  gxf2 {[%clk 0:00:07]} 62. a4 {[%clk 0:00:47]}  Ke1 {[%clk 0:00:07]} 63. Rd6 {[%clk 0:00:42]}  f1=Q {[%clk 0:00:05]} 64. Re6+ {[%clk 0:00:43]}  Kf2 {[%clk 0:00:05]} 65. Re5 {[%clk 0:00:42]}  Qb1+ {[%clk 0:00:06]} 66. Ka5 {[%clk 0:00:41]}  Ra7# {[%clk 0:00:06]} 0-1


[Site "https://www.chess.com"]